bitfinex-derivatives/quotes_SOLF0:USTF0_20241216
["timestamp","ask_amount","ask_price","bid_price","bid_amount"]
[1734347807066,7.13739181,216.93,216.86,7.13739181]
[1734347807266,9.44279181,216.93,216.87,2.306]
[1734347807469,2.08,216.93,216.86,7.13739181]
[1734347808568,2.08,216.93,216.88,2.3059]
[1734347809772,2.305,216.97,216.92,7.13739181]
[1734347810075,2.2,216.98,216.92,7.13739181]
[1734347810076,9.33739181,216.98,216.92,7.13739181]
[1734347811473,11.64229181,216.98,216.93,2.3054]
[1734347811871,2.3049,216.98,216.93,2.3054]
[1734347812075,9.44229181,216.98,216.93,2.3054]
[1734347812581,9.44219181,216.99,216.94,2.3053]
[1734347812779,7.13739181,216.99,216.92,7.13739181]
[1734347812979,53.54957453,217.04,216.92,7.13739181]
[1734347813177,4.6064,217.14,216.9,4.4618]
[1734347813479,7.13739181,217.02,216.95,7.13739181]
[1734347813780,7.13739181,217.02,216.95,9.33739181]
[1734347814482,7.13739181,217.02,216.98,2.3048]
[1734347815573,7.13739181,217.03,216.99,2.3047]
[1734347815774,7.13739181,217.03,216.95,9.33739181]
[1734347815775,7.13739181,217.03,216.97,7.13739181]
[1734347815983,2.3042,217.05,216.97,7.13739181]
[1734347816186,9.44159181,217.05,216.97,7.13739181]
[1734347816683,9.44159181,217.05,216.98,1.511]
[1734347816882,9.44159181,217.05,216.98,3.711]
[1734347817476,9.44159181,217.05,217.0,2.3047]
[1734347820481,293.34710748,217.21,216.98,10.84839181]
[1734347820482,2.304,217.07,217.01,2.3045]
[1734347820687,2.304,217.07,216.98,10.84839181]
[1734347820688,7.13739181,217.07,217.0,7.13739181]
[1734347821086,9.44139181,217.07,217.02,2.3044]
[1734347821786,2.3041,217.06,217.02,2.3044]
[1734347823290,7.13739181,217.05,217.02,2.3044]
[1734347823994,7.13739181,217.03,216.74,47.74376654]
[1734347824188,7.13739181,217.03,216.94,2.2]
[1734347824493,7.13739181,217.01,216.94,9.33739181]
[1734347825293,7.13739181,217.01,216.97,2.3049]
[1734347825690,2.2,217.05,216.97,2.3049]
[1734347825891,2.3046,217.01,216.97,2.3049]
[1734347826495,2.3046,217.01,216.95,7.13739181]
[1734347826995,2.3046,217.01,216.95,9.33739181]
[1734347827295,7.13739181,217.02,216.95,9.33739181]
[1734347827595,2.3048,217.0,216.95,9.33739181]
[1734347828096,2.3048,217.0,216.96,2.3051]
[1734347828297,2.3048,217.0,216.95,9.33739181]
[1734347828498,9.44219181,217.0,216.95,2.2]
[1734347828801,9.44189181,217.02,216.95,9.33739181]
[1734347829295,7.13739181,217.0,216.97,2.305]
[1734347830999,2.3046,217.01,216.97,2.305]
[1734347831498,2.2,217.05,216.95,9.33739181]
[1734347831694,9.44179181,217.03,216.98,2.3049]
[1734347832193,2.3045,217.02,216.95,9.33739181]
[1734347832497,7.13739181,217.01,216.95,9.33739181]
[1734347833501,9.44209181,217.01,216.97,2.305]
[1734347833891,7.13739181,217.02,216.95,9.33739181]
[1734347834198,9.44189181,217.02,216.98,2.3049]
[1734347834398,2.2,217.06,216.98,2.3049]
[1734347834597,9.44179181,217.03,216.98,2.3049]
[1734347835300,2.2,217.06,216.96,7.13739181]
[1734347835513,7.13739181,217.06,216.98,7.13739181]
[1734347835799,7.13739181,217.06,217.0,7.13739181]
[1734347836900,7.13739181,217.06,217.0,9.33739181]
[1734347837496,9.44149181,217.06,217.02,2.3044]
[1734347837703,7.13739181,217.06,217.02,2.3044]
[1734347838104,2.304,217.07,217.03,2.3044]
[1734347838696,2.304,217.07,217.02,7.13739181]
[1734347838697,7.13739181,217.08,217.02,7.13739181]
[1734347838899,7.13739181,217.06,216.93,5.58839799]
[1734347839199,7.13739181,217.04,216.97,7.13739181]
[1734347839401,2.3044,217.03,216.98,7.30602271]
[1734347839604,2.3044,217.03,216.97,7.13739181]
[1734347839803,2.3044,217.03,216.98,5.00119682]
[1734347840003,2.3044,217.03,216.97,7.13739181]
[1734347840202,2.3044,217.03,216.98,5.00125577]
[1734347840398,2.3044,217.03,216.99,2.3047]
[1734347841901,2.3043,217.04,217.0,2.3047]
[1734347842101,7.13739181,217.06,216.98,7.13739181]
[1734347842402,2.304,217.06,217.02,2.3044]
[1734347843899,293.34896562,217.15,217.04,7.13739181]
[1734347844099,7.13739181,217.14,217.06,7.13739181]
[1734347844401,7.13739181,217.14,217.01,2.9351]
[1734347844402,2.3033,217.13,217.08,9.44119181]
[1734347844603,2.3033,217.13,217.08,11.60119181]
[1734347845903,2.3031,217.15,217.1,2.3036]
[1734347846801,7.13739181,217.14,217.06,7.13739181]
[1734347847002,7.13739181,217.08,217.02,7.13739181]
[1734347847405,2.304,217.07,217.02,9.44179181]
[1734347847602,2.304,217.07,217.02,11.60179181]
[1734347850301,2.304,217.07,217.03,7.75912362]
[1734347850707,2.304,217.07,217.03,7.61482362]
[1734347852809,2.16,217.13,217.01,2.9351]
[1734347852810,7.13739181,217.06,217.01,2.9351]
[1734347852998,7.13739181,217.06,217.0,7.13739181]
[1734347853905,256.8960144,217.13,217.0,7.13739181]
[1734347854098,2.3044,217.03,217.0,7.13739181]
[1734347856906,7.13739181,217.06,217.0,7.13739181]
[1734347857106,2.16,217.08,216.98,7.13739181]
[1734347857107,7.13739181,217.04,216.98,7.13739181]
[1734347858008,2.3041,217.06,217.01,2.3045]
[1734347858212,7.13739181,217.09,217.02,7.13739181]
[1734347858516,7.13739181,217.09,217.02,9.29739181]
[1734347859402,2.3039,217.07,217.03,2.3043]
[1734347859808,2.3039,217.07,217.04,7.13739181]
[1734347860009,7.13739181,217.11,217.06,9.44139181]
[1734347860010,2.3035,217.11,217.06,9.44139181]
[1734347860214,7.13739181,217.15,217.08,7.13739181]
[1734347860402,9.29739181,217.15,217.08,7.13739181]
[1734347860607,7.13739181,217.13,217.08,7.13739181]
[1734347861813,9.29739181,217.15,217.08,7.13739181]
[1734347862622,2.3035,217.12,217.08,9.44119181]
[1734347863219,2.3033,217.13,217.09,2.3037]
[1734347863515,2.3033,217.13,217.1,7.13739181]
[1734347863917,7.13739181,217.15,217.1,7.13739181]
[1734347864117,2.3032,217.14,217.1,9.44099181]
[1734347864317,9.29739181,217.17,217.1,7.13739181]
[1734347864711,7.13739181,217.15,217.1,7.13739181]
[1734347865424,2.3034,217.13,217.1,7.13739181]
[1734347865622,7.13739181,217.15,217.07,2.16]
[1734347865823,7.13739181,217.13,217.07,9.29739181]
[1734347866721,2.16,217.17,217.09,7.13739181]
[1734347866919,7.13739181,217.16,217.09,7.13739181]
[1734347868017,2.3034,217.13,217.09,9.44109181]
[1734347868413,2.3032,217.14,217.1,2.3036]
[1734347868619,2.3032,217.14,217.11,7.13739181]
[1734347869223,2.3032,217.14,217.11,9.44089181]
[1734347870725,2.3032,217.14,217.11,7.13739181]
[1734347871025,9.44953181,217.18,217.11,7.13739181]
[1734347871319,2.3033,217.13,217.11,7.13739181]
[1734347871720,2.3033,217.13,217.1,9.44099181]
[1734347872522,7.13739181,217.16,217.09,2.3037]
[1734347872523,2.3034,217.12,217.09,2.3037]
[1734347872713,7.13739181,217.16,216.98,1.4713]
[1734347872912,2.31214,217.18,217.09,7.13739181]
[1734347873115,2.3037,217.1,217.09,7.13739181]
[1734347874720,7.13739181,217.13,217.03,2.3043]
[1734347874911,7.13739181,217.13,216.99,3.102]
[1734347874912,7.13739181,217.11,217.05,7.13739181]
[1734347875617,2.304,217.06,217.05,7.13739181]
[1734347879929,2.304,217.07,217.05,7.13739181]
[1734347880224,2.12,217.13,217.05,7.13739181]
[1734347880521,6.88012727,217.18,217.09,7.13739181]
[1734347880723,9.25739181,217.17,217.11,7.13739181]
[1734347881423,2.3034,217.12,217.11,7.13739181]
[1734347881627,2.12,217.17,217.11,7.13739181]
[1734347881821,2.12,217.17,217.13,7.13739181]
[1734347882521,2.3032,217.14,217.09,2.12]
[1734347882723,0.19214,217.18,217.13,7.13739181]
[1734347882918,0.19214,217.18,217.15,7.13739181]
[1734347883119,0.19214,217.18,217.08,1.4754]
[1734347883120,0.19214,217.18,217.13,2.12]
[1734347883430,0.19214,217.18,217.08,1.4754]
[1734347883431,254.7360144,217.24,217.14,2.12]
[1734347883729,7.13739181,217.26,217.2,7.13739181]
[1734347884124,12.68802639,217.26,217.2,7.13739181]
[1734347885424,2.12,217.27,217.2,7.13739181]
[1734347885625,2.12,217.27,217.16,2.12]
[1734347885626,2.12,217.27,217.22,7.13739181]
[1734347886431,2.3022,217.24,217.22,7.13739181]
[1734347887332,254.7360144,217.32,217.22,7.13739181]
[1734347887333,254.7360144,217.33,217.22,9.43969181]
[1734347887528,7.13739181,217.31,217.24,7.13739181]
[1734347887930,2.3019,217.26,217.24,7.13739181]
[1734347888223,7.13739181,217.27,217.19,2.12]
[1734347888432,7.13739181,217.25,217.19,9.25739181]
[1734347888625,2.3024,217.22,217.19,9.25739181]
[1734347888827,7.13739181,217.27,217.21,7.13739181]
[1734347889429,2.3022,217.23,217.21,7.13739181]
[1734347890032,2.3021,217.25,217.2,2.3025]
[1734347890231,2.3021,217.25,217.22,7.13739181]
[1734347891125,5.60750501,217.32,217.19,2.12]
[1734347891126,2.12,217.32,217.24,7.13739181]
[1734347891334,254.7360144,217.34,217.26,7.13739181]
[1734347891535,7.13739181,217.32,217.26,7.13739181]
[1734347891834,7.13739181,217.32,217.24,7.13739181]
[1734347892332,2.3017,217.29,217.26,7.13739181]
[1734347892532,7.13739181,217.32,217.26,7.13739181]
[1734347894225,2.3017,217.28,217.26,7.13739181]
[1734347894832,2.12,217.38,217.27,2.12]
[1734347895032,7.13739181,217.34,217.28,7.13739181]
[1734347895929,2.3015,217.31,217.28,7.13739181]
[1734347896130,7.13739181,217.34,217.27,2.12]
[1734347896339,5.64689941,217.37,217.17,4.6051]
[1734347896634,7.13739181,217.32,217.26,7.13739181]
[1734347897026,2.3018,217.27,217.26,7.13739181]
[1734347899642,2.3016,217.3,217.26,7.13739181]
[1734347899832,2.12,217.34,217.28,7.13739181]
[1734347900035,7.13739181,217.35,217.28,9.23739181]
[1734347900235,7.13739181,217.36,217.28,9.23739181]
[1734347900835,7.13739181,217.36,217.3,7.13739181]
[1734347901042,2.3014,217.32,217.3,7.13739181]
[1734347901339,7.13739181,217.36,217.3,7.13739181]
[1734347901941,2.3014,217.31,217.3,7.13739181]
[1734347902541,7.13739181,217.34,217.27,2.1]
[1734347902739,7.13739181,217.32,217.27,2.1]
[1734347904145,2.3017,217.29,217.27,2.1]
[1734347904745,2.3017,217.29,217.27,9.23739181]
[1734347906843,2.3017,217.29,217.27,7.13739181]
[1734347907044,2.3017,217.29,217.27,9.23739181]
[1734347908351,2.3015,217.3,217.27,9.23739181]
[1734347908551,9.23739181,217.37,217.29,7.13739181]
[1734347908848,9.23739181,217.37,217.31,7.13739181]
[1734347909042,7.13739181,217.37,217.31,7.13739181]
[1734347909238,38.56473108,217.46,217.31,7.13739181]
[1734347909443,7.13739181,217.39,217.29,2.3016]
[1734347909646,7.13739181,217.35,217.3,7.13739181]
[1734347910746,7.13739181,217.35,217.27,2.1]
[1734347910747,7.13739181,217.35,217.28,2.3017]
[1734347910951,7.13739181,217.35,217.29,7.13739181]
[1734347911145,5.61272452,217.39,217.29,7.13739181]
[1734347911351,7.13739181,217.36,217.29,7.13739181]
[1734347911751,2.3011,217.34,217.29,7.13739181]
[1734347911951,7.13739181,217.38,217.31,7.13739181]
[1734347913453,2.3012,217.33,217.31,7.13739181]
[1734347914348,7.13739181,217.36,217.29,7.13739181]
[1734347914844,2.3015,217.31,217.29,7.13739181]
[1734347920855,9.23739181,217.37,217.29,7.13739181]
[1734347920856,2.3013,217.33,217.29,9.43889181]
[1734347921056,2.3013,217.33,217.32,7.13739181]
[1734347921553,2.3013,217.33,217.29,2.3015]
[1734347921554,2.3014,217.31,217.3,7.13739181]
[1734347922164,7.13739181,217.35,217.27,5.5187822]
[1734347922364,7.13739181,217.35,217.27,12.65617401]
[1734347922863,2.3016,217.3,217.27,12.65617401]
[1734347923559,2.3016,217.3,217.27,7.13739181]
[1734347924163,7.13739181,217.35,217.27,7.13739181]
[1734347925558,2.3016,217.3,217.27,7.13739181]
[1734347927562,263.97340621,217.38,217.29,7.13739181]
[1734347927863,263.97340621,217.38,217.31,7.13739181]
[1734347928366,2.3013,217.33,217.31,7.13739181]
[1734347930765,38.56473108,217.41,217.31,9.21739181]
[1734347930766,254.7360144,217.41,217.31,9.21739181]
[1734347930968,256.8160144,217.41,217.35,7.13739181]
[1734347931168,254.7360144,217.41,217.31,2.08]
[1734347931368,254.7360144,217.41,217.38,7.13739181]
[1734347931868,53.46209085,217.42,217.38,7.13739181]
[1734347932466,2.3005,217.39,217.38,7.13739181]
[1734347934362,315.33549706,217.42,217.35,7.13739181]
[1734347934663,315.33549706,217.42,217.06,15.26046624]
[1734347934664,7.13739181,217.36,217.06,15.26046624]
[1734347934968,308.19810525,217.42,217.24,7.13739181]
[1734347934969,7.13739181,217.32,217.24,7.13739181]
[1734347935369,2.3019,217.27,217.24,7.13739181]
[1734347935966,2.302,217.25,217.16,5.58151361]
[1734347936162,7.13739181,217.3,217.16,5.58151361]
[1734347936163,7.13739181,217.3,217.21,7.13739181]
[1734347936464,7.13739181,217.28,217.21,2.08]
[1734347936668,7.13739181,217.28,217.2,7.13739181]
[1734347937273,7.13739181,217.26,217.16,5.58151361]
[1734347937573,7.13739181,217.24,217.15,4.4677]
[1734347937768,7.13739181,217.24,217.18,7.13739181]
[1734347938072,254.7360144,217.25,217.16,2.08]
[1734347938372,254.7360144,217.25,217.15,10.00846092]
[1734347938562,254.7360144,217.25,217.16,2.08]
[1734347938767,2.3027,217.19,217.16,2.08]
[1734347940474,268.0193054,217.25,217.15,1.5194]
[1734347940663,268.0193054,217.25,217.12,2.08]
[1734347940971,268.0193054,217.25,217.11,2.08]
[1734347941171,254.7360144,217.23,217.11,2.08]
[1734347942371,13.283291,217.25,217.11,2.08]
[1734347942574,13.283291,217.25,217.1,13.506891]
[1734347942769,13.283291,217.25,217.11,2.08]
[1734347943172,2.3031,217.16,217.12,5.48409354]
[1734347943369,2.08,217.21,217.07,11.203291]
[1734347943672,2.08,217.2,217.08,2.08]
[1734347944070,2.08,217.2,217.07,13.507191]
[1734347944269,2.3033,217.13,217.08,2.08]
[1734347944772,2.3032,217.15,217.1,11.203291]
[1734347945371,2.3032,217.14,217.1,11.203291]
[1734347946573,11.203291,217.22,217.1,11.203291]
[1734347946874,2.08,217.23,217.13,11.203291]
[1734347947073,2.08,217.23,217.13,13.283291]
[1734347947966,2.08,217.23,217.13,14.788391]
[1734347948475,2.08,217.23,217.13,3.5851]
[1734347948675,2.08,217.23,217.13,1.5051]
[1734347949471,2.3026,217.2,217.14,2.08]
[1734347949668,2.08,217.23,217.14,2.08]
[1734347949970,2.08,217.26,217.16,2.303]
[1734347950876,2.08,217.28,217.19,11.203291]
[1734347951066,11.203291,217.3,217.19,13.283291]
[1734347951266,13.283291,217.3,217.19,13.283291]
[1734347951466,2.3021,217.25,217.19,15.585891]
[1734347952275,2.3021,217.24,217.19,15.585891]
[1734347952972,13.283291,217.3,217.19,13.283291]
[1734347953173,2.302,217.26,217.2,2.3025]
[1734347953374,13.283291,217.3,217.2,2.3025]
[1734347953571,2.302,217.26,217.2,2.3025]
[1734347953877,13.283291,217.3,217.2,2.3025]
[1734347954173,2.08,217.3,217.2,2.3025]
[1734347955374,2.3023,217.23,217.19,13.283291]
[1734347956770,2.08,217.3,217.19,13.283291]
[1734347957675,2.3022,217.24,217.19,15.585891]
[1734347958178,2.3022,217.24,217.19,13.505891]
[1734347958375,2.3022,217.24,217.2,2.08]
[1734347958873,2.08,217.3,217.2,2.08]
[1734347959070,2.3022,217.23,217.2,2.08]
[1734347959868,2.08,217.3,217.2,4.3825]
[1734347959869,2.3021,217.25,217.2,4.3825]
[1734347960074,2.3021,217.25,217.21,7.16737844]
[1734347963078,7.16737844,217.25,217.18,2.3027]
[1734347963279,7.16737844,217.25,217.17,2.08]
[1734347963575,7.16737844,217.25,217.17,9.24737844]
[1734347963776,2.3025,217.21,217.17,9.24737844]
[1734347964579,9.24737844,217.27,217.19,7.16737844]
[1734347964772,2.08,217.28,217.21,7.16737844]
[1734347965081,7.16737844,217.29,217.21,7.16737844]
[1734347965276,7.16737844,217.32,217.25,7.16737844]
[1734347965474,9.24737844,217.32,217.25,7.16737844]
[1734347966576,2.3018,217.28,217.25,7.16737844]
[1734347966878,7.40842844,217.34,217.27,7.16737844]
[1734347968279,0.24105,217.34,217.29,7.16737844]
[1734347969276,2.3012,217.33,217.29,9.46887844]
[1734347969481,0.24105,217.34,217.31,7.16737844]
[1734347969873,0.24105,217.34,217.31,9.46877844]
[1734347970080,0.24105,217.34,217.3,2.08]
[1734347972074,2.3013,217.32,217.27,11.1896017]
[1734347972275,0.24105,217.34,217.26,2.08]
[1734347972678,2.3017,217.29,217.26,2.08]
[1734347973077,2.32105,217.34,217.26,2.08]
[1734347973279,2.3015,217.3,217.26,4.3819]
[1734347973475,2.32105,217.34,217.23,3.0568]
[1734347973678,2.3021,217.24,217.22,1.5147]
[1734347974886,2.08,217.3,217.22,1.5147]
[1734347975980,2.302,217.26,217.22,3.817]
[1734347978486,2.302,217.25,217.22,1.5147]
[1734347978884,2.3022,217.24,217.22,1.5147]
[1734347985381,2.3023,217.23,217.16,2.303]
[1734347985587,2.08,217.25,217.16,2.303]
[1734347985782,2.08,217.24,217.16,2.303]
[1734347986181,2.3026,217.2,217.16,2.303]
[1734347987187,2.08,217.24,217.11,11.1896017]
[1734347987385,2.08,217.24,217.12,2.08]
[1734347987386,11.1896017,217.22,217.12,2.08]
[1734347988488,11.1896017,217.22,217.11,4.3835]
[1734347988690,2.3032,217.14,217.11,2.08]
[1734347989191,2.3032,217.14,217.1,3.8897]
[1734347989993,2.3032,217.14,217.1,11.06393402]
[1734347990996,2.3032,217.14,217.12,5.62456952]
[1734347992597,2.3032,217.14,217.1,11.06393402]
[1734347993493,2.3032,217.14,217.11,5.43124042]
[1734347996296,7.17423402,217.19,217.12,7.17423402]
[1734347996593,254.7360144,217.26,217.14,7.17423402]
[1734347996895,2.3029,217.17,217.14,7.17423402]
[1734347997096,7.17423402,217.21,217.12,2.08]
[1734347997304,7.17423402,217.15,217.1,1.5861]
[1734347997594,7.17423402,217.13,217.05,7.17423402]
[1734347997790,4.6048,217.22,217.01,1.5917]
[1734347997791,2.08,217.14,217.01,1.5917]
[1734347997996,7.17423402,217.09,217.02,7.17423402]
[1734347998197,2.3039,217.07,217.02,7.17423402]
[1734347998500,2.3039,217.07,217.04,7.17423402]
[1734347999093,2.3039,217.07,217.02,5.3249]
[1734347999298,2.3039,217.07,217.03,7.17423402]
[1734347999890,2.3039,217.07,217.03,12.56935287]
[1734348000195,2.3039,217.07,217.03,5.39511885]
[1734348000892,2.3041,217.05,217.02,3.0205]
[1734348001594,2.08,217.11,217.02,3.0205]
[1734348001794,2.304,217.07,217.02,10.73697919]
[1734348004498,2.304,217.07,217.02,8.43247919]
[1734348004690,2.304,217.07,217.03,2.3044]
[1734348005092,2.3041,217.06,217.02,10.73697919]
[1734348006598,2.3041,217.06,217.03,2.3043]
[1734348009201,13.29692534,217.12,217.02,8.43247919]
[1734348009495,2.3042,217.05,217.02,8.43247919]
[1734348010103,2.3042,217.05,217.02,10.73697919]
[1734348010908,2.3042,217.05,217.02,6.89017919]
[1734348012309,13.29692534,217.08,216.97,2.3049]
[1734348012509,11.21692534,217.05,216.94,3.1138]
[1734348012703,2.3047,217.0,216.96,2.3051]
[1734348013506,2.3047,217.0,216.94,3.1138]
[1734348013709,2.3047,217.0,216.97,2.305]
[1734348013912,13.29692534,217.05,216.97,2.305]
[1734348014112,2.3046,217.01,216.97,2.305]
[1734348015108,2.3045,217.03,216.99,2.3047]
[1734348016005,11.21692534,217.08,216.96,5.50972479]
[1734348016208,1.4852,217.11,216.99,11.21692534]
[1734348016407,11.21692534,217.12,216.99,11.21692534]
[1734348016919,11.21692534,217.12,217.04,2.3042]
[1734348019020,2.3035,217.11,217.03,2.08]
[1734348019222,53.93403666,217.16,217.05,11.21692534]
[1734348019918,51.85403666,217.16,217.05,11.21692534]
[1734348020122,2.3033,217.14,217.09,2.3037]
[1734348020317,2.3033,217.14,217.07,2.08]
[1734348020616,2.3029,217.17,217.13,2.3033]
[1734348021521,2.3028,217.18,217.14,2.3032]
[1734348021919,256.8160144,217.22,217.14,2.3032]
[1734348022119,256.8160144,217.22,217.13,7.17197806]
[1734348022120,7.17197806,217.2,217.13,7.17197806]
[1734348022423,2.3029,217.17,217.13,2.3033]
[1734348023223,7.17197806,217.18,217.13,2.3033]
[1734348023416,9.47477806,217.18,217.13,2.3033]
[1734348024127,2.3028,217.18,217.13,2.3033]
[1734348024818,2.3032,217.14,217.09,13.51065818]
[1734348025016,2.3032,217.14,217.1,2.08]
[1734348025620,2.303,217.17,217.11,2.3035]
[1734348026221,2.303,217.16,217.11,2.3035]
[1734348027317,2.3028,217.18,217.1,2.08]
[1734348028323,268.02307258,217.22,217.13,2.3032]
[1734348028324,2.3029,217.17,217.13,2.3032]
[1734348028523,2.3029,217.17,217.1,2.08]
[1734348028922,268.02307258,217.22,217.09,11.20705818]
[1734348029226,2.3029,217.17,217.1,2.08]
[1734348029627,2.3029,217.17,217.13,2.3033]
[1734348029922,268.02307258,217.22,217.13,2.3033]
[1734348029923,2.3028,217.18,217.13,2.3033]
[1734348030427,2.3028,217.18,217.14,2.3032]
[1734348031423,2.3026,217.2,217.14,2.08]
[1734348031828,2.08,217.24,217.14,2.08]
[1734348032021,2.3025,217.21,217.14,2.08]
[1734348032424,13.28705818,217.25,217.14,2.08]
[1734348032823,11.20705818,217.25,217.16,2.303]
[1734348033022,13.28705818,217.25,217.16,2.303]
[1734348033221,13.28705818,217.25,217.14,2.08]
[1734348033530,11.20705818,217.22,217.14,2.08]
[1734348033923,2.3028,217.18,217.14,2.08]
[1734348034130,13.28705818,217.25,217.14,2.08]
[1734348034327,11.20705818,217.25,217.14,2.08]
[1734348034528,11.20705818,217.28,217.14,13.28705818]
[1734348035130,11.20705818,217.28,217.17,11.20705818]
[1734348035326,11.20705818,217.28,217.18,2.08]
[1734348036430,2.3021,217.25,217.21,2.3024]
[1734348036630,2.08,217.3,217.18,2.08]
[1734348036926,13.28705818,217.31,217.18,3.5632]
[1734348037933,2.302,217.26,217.21,2.3024]
[1734348038426,13.28705818,217.31,217.18,3.5632]
[1734348038623,2.3022,217.24,217.19,2.3026]
[1734348038831,2.3022,217.24,217.18,3.5632]
[1734348040127,2.3022,217.24,217.19,5.5801844]
[1734348040528,2.3022,217.24,217.18,3.5632]
[1734348040529,11.20705818,217.28,217.14,11.20705818]
[1734348040835,2.08,217.27,217.15,2.08]
[1734348041133,2.3024,217.22,217.17,2.3028]
[1734348041726,2.3024,217.22,217.17,7.74642386]
[1734348042337,2.3026,217.2,217.17,5.44362386]
[1734348042538,2.3026,217.2,217.17,7.52362386]
[1734348043530,2.3028,217.19,217.16,2.08]
[1734348044436,11.20705818,217.25,217.16,2.08]
[1734348044635,2.3025,217.21,217.16,2.08]
[1734348044938,2.3025,217.21,217.16,4.383]
[1734348045736,2.3025,217.21,217.16,9.84672958]
[1734348045940,2.3025,217.21,217.16,17.01695399]
[1734348046237,2.3025,217.21,217.16,14.71395399]
[1734348046531,2.3025,217.21,217.18,9.47302441]
[1734348046740,2.3022,217.23,217.18,7.17022441]
[1734348047635,2.3021,217.25,217.2,7.17022441]
[1734348047836,2.3021,217.25,217.2,9.25022441]
[1734348048037,2.3021,217.25,217.21,2.3024]
[1734348049937,2.3019,217.26,217.22,9.47252441]
[1734348050130,7.17022441,217.29,217.22,9.47252441]
[1734348050638,5.59927715,217.33,217.22,9.47252441]
[1734348050835,7.17022441,217.29,217.23,2.3022]
[1734348051335,7.17022441,217.29,217.24,2.08]
[1734348051535,2.3019,217.27,217.24,2.08]
[1734348052035,7.17022441,217.27,217.2,7.17022441]
[1734348052441,2.302,217.25,217.21,2.3024]
[1734348053037,9.47212441,217.27,217.22,9.47252441]
[1734348053440,9.47212441,217.27,217.23,2.08]
[1734348053441,7.17022441,217.27,217.23,2.08]
[1734348054541,2.3019,217.26,217.23,2.08]
[1734348054941,2.3019,217.26,217.23,4.3822]
[1734348060145,2.3019,217.26,217.23,2.3022]
[1734348060348,2.3019,217.26,217.23,4.3822]
[1734348060546,7.17022441,217.29,217.23,2.08]
[1734348060748,2.3018,217.27,217.23,2.08]
[1734348060948,2.3018,217.27,217.24,7.17022441]
[1734348061246,7.17022441,217.32,217.26,7.17022441]
[1734348061747,2.3017,217.28,217.26,7.17022441]
[1734348064343,2.3017,217.28,217.25,2.3019]
[1734348064549,2.3017,217.28,217.25,4.3819]
[1734348065155,2.3019,217.26,217.25,2.08]
[1734348065348,7.17022441,217.3,217.22,7.17022441]
[1734348065555,7.17022441,217.27,217.23,2.08]
[1734348065752,2.3022,217.24,217.23,2.08]
[1734348066248,2.3022,217.24,217.21,2.08]
[1734348066845,7.17022441,217.27,217.2,2.3025]
[1734348067048,7.17022441,217.27,217.21,2.08]
[1734348067547,7.17022441,217.27,217.2,2.3025]
[1734348067751,7.17022441,217.27,217.2,4.3825]
[1734348067948,261.90623881,217.27,217.2,4.3825]
[1734348068449,2.3022,217.24,217.2,4.3825]
[1734348069350,7.17022441,217.23,217.16,5.46372958]
[1734348069754,7.17022441,217.23,216.91,190.0]
[1734348069755,7.17022441,217.21,217.0,4.6094]
[1734348069952,7.17022441,217.21,217.14,2.08]
[1734348070264,7.17022441,217.19,217.13,6.90995082]
[1734348070555,7.17022441,217.19,217.13,3.5679]
[1734348071150,7.17022441,217.21,217.14,7.17022441]
[1734348072459,2.3027,217.19,217.14,9.47342441]
[1734348073356,2.3027,217.19,217.14,11.55342441]
[1734348074361,2.3028,217.18,217.14,11.55342441]
[1734348075556,7.17022441,217.21,217.15,2.303]
[1734348076259,7.17022441,217.21,217.14,9.25022441]
[1734348076461,7.17022441,217.21,217.14,2.08]
[1734348076858,7.17022441,217.19,217.14,2.08]
[1734348077160,7.17022441,217.2,217.13,7.17022441]
[1734348078067,2.303,217.16,217.13,7.17022441]
[1734348078663,2.3031,217.15,217.13,7.17022441]
[1734348078860,7.17022441,217.18,217.11,9.25022441]
[1734348079165,2.3033,217.14,217.09,11.55392441]
[1734348079763,2.3033,217.14,217.11,7.17022441]
[1734348079961,9.25022441,217.2,217.13,7.17022441]
[1734348080165,254.7360144,217.23,217.15,7.17022441]